bitfinex/quotes_BTCUSD_20241102
["timestamp","ask_amount","ask_price","bid_price","bid_amount"]
[1730556147989,0.7420445,69383.0,69382.0,1.16045437]
[1730556148223,0.7420445,69383.0,69382.0,0.89384889]
[1730556148871,0.7420445,69383.0,69382.0,0.90893645]
[1730556149071,0.7436865,69383.0,69382.0,0.9304726]
[1730556149276,0.7436865,69383.0,69382.0,0.9534726]
[1730556149480,0.7436865,69383.0,69382.0,1.01710666]
[1730556149702,0.7436865,69383.0,69382.0,1.00310666]
[1730556149925,0.7436865,69383.0,69382.0,0.87438889]
[1730556150149,0.8426865,69383.0,69382.0,0.87438889]
[1730556150371,0.8426865,69383.0,69382.0,0.82610558]
[1730556150796,0.8426865,69383.0,69382.0,0.68211625]
[1730556151235,0.8426865,69383.0,69382.0,0.63927625]
[1730556151678,0.8426865,69383.0,69382.0,0.75327625]
[1730556151905,0.8426865,69383.0,69382.0,0.76227625]
[1730556152348,0.9242865,69383.0,69382.0,0.79027625]
[1730556152592,1.04355136,69383.0,69382.0,0.66727625]
[1730556152826,1.18202866,69383.0,69382.0,0.528821]
[1730556153072,1.06495145,69383.0,69382.0,0.500821]
[1730556153307,1.04355136,69383.0,69382.0,0.500821]
[1730556153525,1.06493455,69383.0,69382.0,0.512821]
[1730556153736,1.06493455,69383.0,69382.0,0.412821]
[1730556153969,1.04355136,69383.0,69382.0,0.400821]
[1730556154178,1.04353998,69383.0,69382.0,0.400821]
[1730556154862,1.04353998,69383.0,69382.0,0.511821]
[1730556155095,1.04353998,69383.0,69382.0,0.500821]
[1730556155305,1.12558803,69383.0,69382.0,0.244621]
[1730556155527,0.95198803,69383.0,69382.0,0.002721]
[1730556155755,0.94998803,69383.0,69382.0,0.002721]
[1730556156012,0.95498803,69383.0,69382.0,0.002721]
[1730556156681,0.95498803,69383.0,69382.0,0.5]
[1730556157113,0.94998803,69383.0,69382.0,0.5]
[1730556157331,0.95698803,69383.0,69382.0,0.5]
[1730556157559,0.94630516,69383.0,69382.0,0.5]
[1730556157783,0.95496332,69383.0,69382.0,0.5]
[1730556158012,0.95496332,69383.0,69360.0,0.000821]
[1730556158013,0.105911,69368.0,69360.0,0.000821]
[1730556158247,1.01570411,69368.0,69360.0,0.000821]
[1730556158480,0.105921,69361.0,69360.0,0.000821]
[1730556158717,0.8479655,69361.0,69360.0,0.13927625]
[1730556159386,0.8479655,69361.0,69360.0,0.000821]
[1730556159826,0.8479655,69361.0,69360.0,0.005821]
[1730556160045,0.8479655,69361.0,69360.0,0.011821]
[1730556160708,0.8479655,69361.0,69360.0,0.005821]
[1730556160924,0.8479655,69361.0,69360.0,0.011821]
[1730556161334,0.7470445,69361.0,69360.0,0.14527625]
[1730556161556,0.7470445,69361.0,69360.0,0.14827625]
[1730556161773,0.7470445,69361.0,69360.0,0.14527625]
[1730556162472,0.7470445,69361.0,69360.0,0.26227625]
[1730556162473,0.7420445,69361.0,69360.0,0.26227625]
[1730556162681,0.7470445,69361.0,69360.0,0.37319825]
[1730556162960,0.7420445,69361.0,69360.0,0.37319825]
[1730556163175,0.7420445,69361.0,69360.0,0.36919825]
[1730556163390,0.7420445,69361.0,69360.0,0.37619825]
[1730556163636,0.7420445,69361.0,69360.0,0.27527625]
[1730556163856,0.8479655,69361.0,69360.0,0.24527625]
[1730556164302,0.8479655,69361.0,69360.0,0.25227625]
[1730556164542,0.8479655,69361.0,69360.0,0.021821]
[1730556164765,0.8479655,69361.0,69360.0,0.013821]
[1730556165208,0.8479655,69361.0,69360.0,0.020821]
[1730556165441,0.8479655,69361.0,69360.0,0.000821]
[1730556165885,0.9814428,69361.0,69360.0,0.014821]
[1730556166129,0.8479655,69361.0,69360.0,0.014821]
[1730556166408,0.8479655,69361.0,69360.0,0.006821]
[1730556166624,0.8479655,69361.0,69360.0,0.013821]
[1730556167048,0.8479655,69361.0,69360.0,0.006821]
[1730556167254,0.8479655,69361.0,69360.0,0.000821]
[1730556167451,0.8479655,69361.0,69360.0,0.004821]
[1730556167733,0.8479655,69361.0,69360.0,0.007821]
[1730556167957,0.7470445,69361.0,69360.0,0.14627625]
[1730556168846,0.7470445,69361.0,69360.0,0.14227625]
[1730556169311,0.7470445,69361.0,69360.0,0.25119825]
[1730556169540,0.7420445,69361.0,69360.0,0.37419825]
[1730556169767,0.7420445,69361.0,69360.0,0.25027625]
[1730556169998,0.7420445,69361.0,69360.0,0.14227625]
[1730556170258,0.7470445,69361.0,69360.0,0.14227625]
[1730556170490,0.7470445,69361.0,69360.0,0.14627625]
[1730556170949,0.7470445,69361.0,69360.0,0.15327625]
[1730556171184,0.7420445,69361.0,69360.0,0.15327625]
[1730556171423,0.7470445,69361.0,69360.0,0.15327625]
[1730556171649,0.7470445,69361.0,69360.0,0.14627625]
[1730556172105,0.7470445,69361.0,69360.0,0.15227625]
[1730556172996,0.7420445,69361.0,69360.0,0.15227625]
[1730556173224,0.7420445,69361.0,69360.0,0.37619825]
[1730556173689,0.7420445,69361.0,69360.0,0.45679825]
[1730556173915,0.7420445,69361.0,69360.0,0.46179825]
[1730556174420,0.7420445,69361.0,69360.0,0.45579825]
[1730556174655,0.7420445,69361.0,69360.0,0.46879825]
[1730556174869,0.7420445,69361.0,69360.0,0.45579825]
[1730556175087,0.7420445,69361.0,69360.0,0.44879825]
[1730556175332,0.7420445,69361.0,69360.0,0.46279825]
[1730556175987,0.7420445,69361.0,69360.0,0.46818935]
[1730556176231,0.7420445,69361.0,69360.0,0.45779825]
[1730556176445,0.7420445,69361.0,69360.0,0.46879825]
[1730556176889,0.7420445,69361.0,69360.0,0.25027625]
[1730556177301,0.7420445,69361.0,69360.0,0.26427625]
[1730556177504,0.75537957,69361.0,69360.0,0.26427625]
[1730556177980,0.75537957,69361.0,69360.0,0.26727625]
[1730556178189,0.75537957,69361.0,69360.0,0.25327625]
[1730556178409,0.7420445,69361.0,69360.0,0.25327625]
[1730556178639,0.88619615,69361.0,69360.0,0.014821]
[1730556178852,0.8479655,69361.0,69360.0,0.014821]
[1730556179090,0.86130669,69361.0,69360.0,0.024821]
[1730556179540,0.88266688,69361.0,69360.0,0.024821]
[1730556180459,0.88266688,69361.0,69360.0,0.010821]
[1730556180882,0.88266688,69361.0,69360.0,0.019821]
[1730556181084,0.90386773,69361.0,69360.0,0.019821]
[1730556181730,0.88266688,69361.0,69360.0,0.019821]
[1730556181938,0.77674588,69361.0,69360.0,0.15827625]
[1730556182167,0.78174588,69361.0,69360.0,0.15827625]
[1730556182802,0.77674588,69361.0,69360.0,0.15827625]
[1730556183049,0.78174588,69361.0,69360.0,0.15827625]
[1730556183606,0.77674588,69361.0,69360.0,0.25919825]
[1730556183814,0.7604267,69361.0,69360.0,0.15827625]
[1730556184026,0.77683822,69361.0,69360.0,0.15827625]
[1730556184226,0.78183822,69361.0,69360.0,0.15827625]
[1730556184629,0.77683822,69361.0,69360.0,0.25919825]
[1730556184845,0.79523747,69361.0,69360.0,0.25919825]
[1730556185047,0.79023747,69361.0,69360.0,0.15827625]
[1730556185248,0.79523747,69361.0,69360.0,0.15827625]
[1730556185458,0.89615847,69361.0,69360.0,0.15827625]
[1730556185976,0.89615847,69361.0,69360.0,0.019821]
[1730556187107,0.88278595,69361.0,69360.0,0.019821]
[1730556187313,1.05053412,69361.0,69360.0,0.019821]
[1730556189756,1.02910071,69361.0,69360.0,0.019821]
[1730556189938,1.05051927,69361.0,69360.0,0.019821]
[1730556190344,1.05051927,69361.0,69360.0,0.519821]
[1730556190550,1.01571411,69361.0,69360.0,0.519821]
[1730556190795,1.05051428,69361.0,69360.0,0.519821]
[1730556191016,1.18899158,69361.0,69360.0,0.519821]
[1730556191433,1.18899158,69361.0,69360.0,0.019821]
[1730556192055,1.05051428,69361.0,69360.0,0.019821]
[1730556192285,0.88276567,69361.0,69360.0,0.019821]
[1730556193463,0.7470445,69361.0,69360.0,0.15827625]
[1730556193853,0.8479655,69361.0,69360.0,0.010821]
[1730556194055,1.14087756,69361.0,69360.0,0.013821]
[1730556194382,1.14087756,69361.0,69360.0,0.003821]
[1730556194795,1.17566881,69361.0,69360.0,0.010821]
[1730556195001,1.17566881,69361.0,69360.0,0.015821]
[1730556195182,1.18066881,69361.0,69360.0,0.005821]
[1730556195421,1.18566881,69361.0,69360.0,0.005821]
[1730556195630,1.0179202,69361.0,69360.0,0.011821]
[1730556197585,0.87775675,69361.0,69360.0,0.31897625]
[1730556197822,0.77683575,69361.0,69360.0,0.54289825]
[1730556198023,0.78183575,69361.0,69360.0,0.51989825]
[1730556198458,0.7470445,69361.0,69360.0,0.41897625]
[1730556198668,0.76845517,69361.0,69360.0,0.41297625]
[1730556198869,0.78183684,69361.0,69360.0,0.41297625]
[1730556199070,0.78183684,69361.0,69360.0,0.52789825]
[1730556199528,0.78183684,69361.0,69360.0,0.51389825]
[1730556199950,0.88275784,69361.0,69360.0,0.41997625]
[1730556200375,0.88275784,69361.0,69360.0,0.43397625]
[1730556200598,0.88275784,69361.0,69360.0,0.41997625]
[1730556200845,0.88275784,69361.0,69360.0,0.012821]
[1730556201040,0.88275784,69361.0,69360.0,0.023821]
[1730556201639,0.93474437,69361.0,69360.0,0.023821]
[1730556202226,0.89995203,69361.0,69360.0,0.023821]
[1730556202445,0.86134642,69361.0,69360.0,0.023821]
[1730556202648,0.88275589,69361.0,69360.0,0.023821]
[1730556206115,0.7470445,69361.0,69360.0,0.023821]
[1730556206379,0.86938475,69361.0,69360.0,0.023821]
[1730556206608,0.78185078,69361.0,69360.0,0.023821]
[1730556207033,0.88277178,69361.0,69360.0,0.023821]
[1730556207865,0.95860847,69361.0,69360.0,0.023821]
[1730556208048,0.88277178,69361.0,69360.0,0.023821]
[1730556209689,0.88278299,69361.0,69360.0,0.023821]
[1730556210137,0.78186199,69361.0,69360.0,0.023821]
[1730556210353,0.88278299,69361.0,69360.0,0.102421]
[1730556211198,1.01142779,69361.0,69360.0,0.102421]
[1730556211421,1.01142779,69361.0,69360.0,0.023821]
[1730556211637,0.88278299,69361.0,69360.0,0.023821]
[1730556212748,1.0505316,69361.0,69360.0,0.023821]
[1730556212963,0.88278299,69361.0,69360.0,0.023821]
[1730556213193,0.8479655,69361.0,69360.0,0.023821]
[1730556213406,0.88278329,69361.0,69360.0,0.023821]
[1730556213620,1.02126059,69361.0,69360.0,0.023821]
[1730556215946,0.88278329,69361.0,69360.0,0.023821]
[1730556216899,0.8479655,69361.0,69360.0,0.023821]
[1730556217353,0.88279011,69361.0,69360.0,0.023821]
[1730556217590,0.90422032,69361.0,69360.0,0.023821]
[1730556221415,1.22042418,69361.0,69360.0,0.023821]
[1730556221624,1.22242418,69361.0,69360.0,0.023821]
[1730556221844,1.49730051,69361.0,69360.0,0.023821]
[1730556222050,1.60437595,69361.0,69360.0,0.023821]
[1730556222263,1.60437595,69361.0,69360.0,0.012821]
[1730556222739,1.3295519,69361.0,69360.0,0.011821]
[1730556222953,1.3295519,69361.0,69360.0,0.000821]
[1730556223162,1.41517522,69361.0,69360.0,0.013821]
[1730556223380,1.3275519,69361.0,69360.0,0.013821]
[1730556223586,1.19115287,69361.0,69360.0,0.001821]
[1730556224031,1.19115287,69361.0,69360.0,0.002821]
[1730556224683,1.19315287,69361.0,69360.0,0.002821]
[1730556224890,1.25535038,69361.0,69360.0,0.002821]
[1730556225589,1.19115287,69361.0,69360.0,0.002821]
[1730556225794,1.19315287,69361.0,69360.0,0.002821]
[1730556225976,1.25735038,69361.0,69360.0,0.002821]
[1730556226186,1.19315287,69361.0,69360.0,0.002821]
[1730556226632,1.19115287,69361.0,69360.0,0.002821]
[1730556227264,1.25534099,69361.0,69360.0,0.002821]
[1730556227472,1.25734099,69361.0,69360.0,0.002821]
[1730556227696,1.19315287,69361.0,69360.0,0.002821]
[1730556228183,1.20108617,69361.0,69360.0,0.002821]
[1730556229029,1.20108617,69361.0,69360.0,1e-06]
[1730556229261,1.2010572,69361.0,69360.0,1e-06]
[1730556230078,1.23581208,69361.0,69360.0,1e-06]
[1730556230523,1.23581208,69361.0,69360.0,0.000822]
[1730556231334,1.17165293,69361.0,69360.0,0.000822]
[1730556231559,1.23579889,69361.0,69360.0,0.000822]
[1730556231848,1.3357987,69361.0,69360.0,0.000822]
[1730556232293,1.26965293,69361.0,69360.0,0.000822]
[1730556232515,1.31241187,69361.0,69360.0,0.000822]
[1730556232747,1.29102425,69361.0,69360.0,0.000822]
[1730556233225,0.9140917,69361.0,69360.0,0.000822]
[1730556233465,0.87133276,69361.0,69360.0,0.000822]
[1730556233701,0.85633276,69361.0,69360.0,0.000822]
[1730556233941,0.86633276,69361.0,69360.0,0.099522]
[1730556234434,0.86133276,69361.0,69360.0,0.099521]
[1730556234689,1.00481006,69361.0,69360.0,0.000821]
[1730556235150,1.00981006,69361.0,69360.0,0.000821]
[1730556235874,1.14826531,69361.0,69360.0,0.000821]
[1730556236364,1.14826502,69361.0,69360.0,0.000821]
[1730556237725,1.15026502,69361.0,69360.0,0.000821]
[1730556237953,1.14826502,69361.0,69360.0,0.000821]
[1730556238449,0.87133247,69361.0,69360.0,0.000821]
[1730556239327,0.87033247,69361.0,69360.0,0.001821]
[1730556239608,0.86633247,69361.0,69360.0,0.082221]
[1730556239804,1.00480977,69361.0,69360.0,0.082221]
[1730556240026,1.00880977,69361.0,69360.0,0.083221]
[1730556240251,1.00480977,69361.0,69360.0,0.082221]
[1730556240705,1.00880977,69361.0,69360.0,0.082221]
[1730556240941,1.00880977,69361.0,69360.0,0.000821]
[1730556240942,1.01380977,69361.0,69360.0,0.000821]
[1730556241175,0.110925,69358.0,69357.0,0.09846436]
[1730556241406,0.87703391,69358.0,69357.0,0.09846436]
[1730556242101,0.8529695,69358.0,69357.0,0.09846436]
[1730556242330,0.86366924,69358.0,69357.0,0.09846436]
[1730556242559,0.87704492,69358.0,69357.0,0.09846436]
[1730556242786,1.01552301,69358.0,69357.0,0.09846436]
[1730556243016,1.01252301,69358.0,69357.0,0.09846436]
[1730556243237,1.01752301,69358.0,69357.0,0.09846436]
[1730556243803,1.01052301,69358.0,69357.0,0.09846436]
[1730556244024,1.01552301,69358.0,69357.0,0.09846436]
[1730556244250,1.01752301,69358.0,69357.0,0.09846436]
[1730556244480,1.01252301,69358.0,69357.0,0.09846436]
[1730556244955,0.87904571,69358.0,69357.0,0.09846436]
[1730556245423,0.87204571,69358.0,69357.0,0.18076436]
[1730556245659,0.77312071,69358.0,69357.0,0.18076436]
[1730556245887,0.76242683,69358.0,69357.0,0.18076436]
[1730556246144,0.86335183,69358.0,69357.0,0.18076436]
[1730556246606,0.94997464,69358.0,69357.0,0.18076436]
[1730556246833,0.94997464,69358.0,69357.0,0.18476436]
[1730556247065,0.87205592,69358.0,69357.0,0.18476436]
[1730556247770,0.87205592,69358.0,69357.0,0.18076436]
[1730556248005,0.86135183,69358.0,69357.0,0.18576436]
[1730556248482,0.86135183,69358.0,69357.0,0.18076436]
[1730556248721,0.76042683,69358.0,69357.0,0.18076436]
[1730556249183,0.75542683,69358.0,69357.0,0.18076436]
[1730556249414,0.75542276,69358.0,69357.0,0.42014661]
[1730556249664,0.7420445,69358.0,69357.0,0.42114661]
[1730556249898,0.7470445,69358.0,69357.0,0.42214661]
[1730556250134,0.7420445,69358.0,69357.0,0.42214661]
[1730556250372,0.7420445,69358.0,69357.0,0.42614661]
[1730556250582,0.7420445,69358.0,69357.0,0.42214661]
[1730556250812,0.7470445,69358.0,69357.0,0.32121961]
[1730556251035,0.7470445,69358.0,69357.0,0.32921961]
[1730556251589,0.7470445,69358.0,69357.0,0.34021961]
[1730556251821,0.8479695,69358.0,69357.0,0.34021961]
[1730556252046,0.8479695,69358.0,69357.0,0.32921961]
[1730556252502,0.7470445,69358.0,69357.0,0.34021961]
[1730556252947,0.8479695,69358.0,69357.0,0.34021961]
[1730556253172,0.8429695,69358.0,69357.0,0.34021961]
[1730556253394,0.8479695,69358.0,69357.0,0.20176436]
[1730556254309,0.8479695,69358.0,69357.0,0.20258536]
[1730556254772,0.86133378,69358.0,69357.0,0.20258536]
[1730556259383,0.75540878,69358.0,69357.0,0.44196761]
[1730556259608,0.7420445,69358.0,69357.0,0.34104061]
[1730556259838,0.7420445,69358.0,69357.0,0.44196761]
[1730556260753,0.7470445,69358.0,69357.0,0.44196761]
[1730556260987,0.7420445,69358.0,69357.0,0.44196761]
[1730556262847,0.7420445,69358.0,69357.0,0.56496761]
[1730556263082,0.7420445,69358.0,69357.0,0.56947531]
[1730556263552,0.7420445,69358.0,69357.0,0.59831531]
[1730556263998,0.7420445,69358.0,69357.0,0.56947531]
[1730556264216,0.7420445,69358.0,69357.0,0.54847531]
[1730556264664,0.7420445,69358.0,69357.0,0.57647531]
[1730556264880,0.7420445,69358.0,69357.0,0.56247531]
[1730556265103,0.7420445,69358.0,69357.0,0.54847531]
[1730556265319,0.7420445,69358.0,69357.0,0.56247531]
[1730556265958,0.7420445,69358.0,69357.0,0.56747531]
[1730556266190,0.7420445,69358.0,69357.0,0.58675803]
[1730556266437,0.5639445,69358.0,69357.0,0.80384726]
[1730556266684,0.5639445,69358.0,69357.0,0.58675756]
[1730556267322,0.5639445,69358.0,69357.0,0.57275756]
[1730556267537,0.5639445,69358.0,69357.0,0.55875756]
[1730556267749,0.5639445,69358.0,69357.0,0.57275756]
[1730556267968,0.5639445,69358.0,69357.0,0.58675756]
[1730556268182,0.5639445,69358.0,69357.0,0.57275756]
[1730556268858,0.5639445,69358.0,69357.0,0.56825033]
[1730556269088,0.5639445,69358.0,69357.0,0.55875752]
[1730556269519,0.5639445,69358.0,69357.0,0.5484748]
[1730556269734,0.5639445,69358.0,69357.0,0.5254748]
[1730556270229,0.5639445,69358.0,69357.0,1.03947523]
[1730556270455,0.5639445,69358.0,69357.0,1.02547523]
[1730556270877,0.5639445,69358.0,69357.0,1.06247523]
[1730556271103,0.5639445,69358.0,69357.0,1.07647523]
[1730556271342,0.5639445,69358.0,69357.0,1.06247523]
[1730556271769,0.5639445,69358.0,69357.0,1.07647523]
[1730556272182,0.5639445,69358.0,69357.0,1.06247523]
[1730556272816,0.5639445,69358.0,69357.0,1.04847523]
[1730556273670,0.5639445,69358.0,69357.0,1.06247523]
[1730556273898,0.5639445,69358.0,69357.0,1.04847523]
[1730556274183,0.5639445,69358.0,69357.0,1.09131523]
[1730556275039,0.5639445,69358.0,69357.0,1.10531523]
[1730556275453,0.5639445,69358.0,69357.0,1.12431523]
[1730556275666,0.5639445,69358.0,69357.0,1.11031523]
[1730556276086,0.5639445,69358.0,69357.0,1.12431523]
[1730556276292,0.5639445,69358.0,69357.0,1.21085523]
[1730556276532,0.5639445,69358.0,69357.0,1.17785523]
[1730556276792,0.5639445,69358.0,69357.0,1.18285523]
[1730556277001,0.5639445,69358.0,69357.0,1.19234761]
[1730556277210,0.5639445,69358.0,69357.0,1.19685503]
[1730556277435,0.5639445,69358.0,69357.0,1.16885503]
[1730556277675,0.5639445,69358.0,69357.0,1.18285503]
[1730556277920,0.5639445,69358.0,69357.0,1.11031503]
[1730556278168,0.5639445,69358.0,69357.0,1.10580761]
[1730556279270,0.5655865,69358.0,69357.0,1.10580761]
[1730556287699,0.5655865,69358.0,69357.0,1.10080761]
[1730556291694,0.5655865,69358.0,69357.0,1.14896549]
[1730556292794,0.5655865,69358.0,69357.0,1.10580761]
[1730556293260,0.5655865,69358.0,69357.0,1.17054444]
[1730556293510,0.5655865,69358.0,69357.0,1.32987154]
[1730556294408,0.5655865,69358.0,69357.0,1.32988604]
[1730556294631,0.5655865,69358.0,69357.0,1.33188604]
[1730556295550,0.5655865,69358.0,69357.0,1.26514139]
[1730556295808,0.5655865,69358.0,69357.0,1.26714139]
[1730556296869,0.5655865,69358.0,69357.0,1.26715119]
[1730556297412,0.5655865,69358.0,69357.0,1.4348998]
[1730556297644,0.5655865,69358.0,69357.0,1.52123198]
[1730556297850,0.5655865,69358.0,69357.0,1.4348998]
[1730556298277,0.5655865,69358.0,69357.0,1.37306642]
[1730556298492,0.5655865,69358.0,69357.0,1.26515119]
[1730556298738,0.5655865,69358.0,69357.0,1.25115341]
[1730556298959,0.5655865,69358.0,69357.0,1.35148843]
[1730556299847,0.5655865,69358.0,69357.0,1.33748843]
[1730556300060,0.5655865,69358.0,69357.0,1.24615341]
[1730556300289,0.5655865,69358.0,69357.0,1.33248843]
[1730556300736,0.5655865,69358.0,69357.0,1.24615341]
[1730556300947,0.5655865,69358.0,69357.0,1.26515341]
[1730556301396,0.5655865,69358.0,69357.0,1.35148843]
[1730556301609,0.5655865,69358.0,69357.0,1.26515341]
[1730556302941,0.5655865,69358.0,69357.0,1.29608453]
[1730556303406,0.5655865,69358.0,69357.0,1.23131341]
[1730556303823,0.5655865,69358.0,69357.0,1.13675648]
[1730556304042,0.5655865,69358.0,69357.0,1.14401125]
[1730556304261,0.5655865,69358.0,69357.0,1.10081761]
[1730556305267,0.5655865,69358.0,69357.0,1.37036566]
[1730556305502,0.5655865,69358.0,69357.0,1.47828239]
[1730556305931,0.5655865,69358.0,69357.0,1.47844478]
[1730556306159,0.5655865,69358.0,69357.0,1.37040704]
[1730556306370,0.5655865,69358.0,69357.0,1.37540704]
[1730556307224,0.5655865,69358.0,69357.0,1.26036886]
[1730556307440,0.5655865,69358.0,69357.0,0.9786775]
[1730556307653,0.6715115,69358.0,69357.0,0.71051073]
[1730556307895,0.6715115,69358.0,69357.0,0.528821]
[1730556307896,0.68491855,69358.0,69357.0,0.528821]
[1730556308642,0.6715115,69358.0,69357.0,0.514821]
[1730556308891,0.68491331,69358.0,69357.0,0.500821]
[1730556309099,0.68491331,69358.0,69357.0,0.520821]
[1730556309556,0.68491331,69358.0,69357.0,0.506821]
[1730556309981,0.68491331,69358.0,69357.0,0.513821]
[1730556312150,0.6715115,69358.0,69357.0,0.513821]
[1730556312370,0.68489307,69358.0,69357.0,0.513821]
[1730556313075,0.82337037,69358.0,69357.0,0.513821]
[1730556313695,0.68489307,69358.0,69357.0,0.513821]
[1730556315691,0.6715115,69358.0,69357.0,0.513821]
[1730556316343,0.6765115,69358.0,69357.0,0.513821]
[1730556316606,0.69487891,69358.0,69357.0,0.513821]
[1730556318127,0.69487891,69358.0,69357.0,0.507821]
[1730556318333,0.69587891,69358.0,69357.0,0.507821]
[1730556318804,0.69487891,69358.0,69357.0,0.507821]
[1730556319003,0.69587891,69358.0,69357.0,0.500821]
[1730556319692,0.69586706,69358.0,69357.0,0.500821]
[1730556319895,0.69486706,69358.0,69357.0,0.500821]
[1730556320390,0.69486706,69358.0,69357.0,0.001821]
[1730556321256,0.69586706,69358.0,69357.0,0.001821]
[1730556321442,0.69586706,69358.0,69357.0,0.000821]
[1730556321917,0.69686706,69358.0,69357.0,0.001821]
[1730556322155,0.69486706,69358.0,69357.0,0.001821]
[1730556322376,0.69486706,69358.0,69357.0,0.000821]
[1730556322778,0.69486706,69358.0,69357.0,0.001821]
[1730556323023,0.69586706,69358.0,69357.0,0.001821]
[1730556323244,0.69586706,69358.0,69357.0,0.000821]
[1730556324103,0.68586706,69358.0,69357.0,0.000821]
[1730556324326,0.68486706,69358.0,69357.0,0.000821]
[1730556325210,0.68486706,69358.0,69357.0,0.21977625]
[1730556325211,0.58494206,69358.0,69357.0,0.21977625]
[1730556325417,0.5705865,69358.0,69357.0,0.31137625]
[1730556325836,0.5705865,69358.0,69357.0,0.31237625]
[1730556326040,0.5705865,69358.0,69357.0,0.31137625]
[1730556326484,0.5705865,69358.0,69357.0,0.31937625]
[1730556326928,0.5705865,69358.0,69357.0,0.31137625]
[1730556327346,0.5705865,69358.0,69357.0,0.31937625]
[1730556327561,0.5705865,69358.0,69357.0,0.32637625]
[1730556327834,0.6715115,69358.0,69357.0,0.22777625]
[1730556328049,0.6715115,69358.0,69357.0,0.23777625]
[1730556328746,0.6715115,69358.0,69357.0,0.22977625]
[1730556328747,0.5705865,69358.0,69357.0,0.22977625]
[1730556328985,0.5705865,69358.0,69357.0,0.24077625]
[1730556329437,0.5655865,69358.0,69357.0,0.45630325]
[1730556331004,0.5655865,69358.0,69357.0,0.55630325]
[1730556331224,0.5655865,69358.0,69357.0,0.58515325]
[1730556331893,0.5655865,69358.0,69357.0,0.5795284]
[1730556332346,0.5655865,69358.0,69357.0,0.5835284]
[1730556332572,0.5655865,69358.0,69357.0,0.5885284]
[1730556333016,0.5655865,69358.0,69357.0,0.5745284]
[1730556333238,0.5655865,69358.0,69357.0,0.5905284]
[1730556333443,0.5655865,69358.0,69357.0,0.5885284]
[1730556333649,0.5655865,69358.0,69357.0,0.6025284]
[1730556334119,0.5655865,69358.0,69357.0,0.63162445]
[1730556334325,0.5655865,69358.0,69357.0,0.64562445]
[1730556334758,0.5655865,69358.0,69357.0,0.63162445]
[1730556335234,0.5655865,69358.0,69357.0,1.0596784]
[1730556335513,0.5655865,69358.0,69357.0,1.0686784]
[1730556336202,0.5655865,69358.0,69357.0,1.06330325]
[1730556341378,0.5655865,69358.0,69357.0,0.99122625]
[1730556341592,0.5655865,69358.0,69357.0,0.96822625]
[1730556343793,0.5655865,69358.0,69357.0,1.06915325]
[1730556344029,0.5655865,69358.0,69357.0,0.96822625]
[1730556345098,0.5655865,69358.0,69357.0,1.06915325]
[1730556346599,0.5655865,69358.0,69357.0,1.09215325]
[1730556347236,0.5655865,69358.0,69357.0,1.09715325]
[1730556347690,0.5655865,69358.0,69357.0,1.09915325]
[1730556349214,0.5655865,69358.0,69357.0,1.09715325]
[1730556354517,0.5655865,69358.0,69357.0,0.99122625]
[1730556354800,0.5655865,69358.0,69357.0,0.77352414]
[1730556354801,0.91521085,69358.0,69357.0,0.77352414]
[1730556355022,0.9852336,69358.0,69357.0,0.528]
[1730556355295,1.10015399,69358.0,69357.0,0.528]
[1730556355537,0.74205723,69358.0,69357.0,0.528]
[1730556355796,0.97558933,69358.0,69357.0,0.528]
[1730556355998,1.07616352,69358.0,69357.0,0.528]
[1730556356239,1.41012933,69358.0,69357.0,0.528]
[1730556356671,1.42082175,69358.0,69357.0,0.528]
[1730556356912,1.42082175,69358.0,69344.0,0.000821]
[1730556356913,0.105944,69345.0,69344.0,0.000821]
[1730556357152,0.94125325,69345.0,69344.0,0.000821]
[1730556357821,0.83530925,69345.0,69344.0,0.000821]
[1730556358049,0.93625325,69345.0,69344.0,0.000821]
[1730556358297,0.91480457,69345.0,69344.0,0.000821]
[1730556358575,0.93615157,69345.0,69344.0,0.005821]
[1730556358810,0.97085138,69345.0,69344.0,0.005821]
[1730556359298,0.97084453,69345.0,69344.0,0.005821]
[1730556359778,0.96016755,69345.0,69344.0,0.005821]
[1730556360227,0.93881382,69345.0,69344.0,0.005821]
[1730556360658,0.93881382,69345.0,69344.0,0.011821]
[1730556361758,0.96014108,69345.0,69344.0,0.011821]
[1730556362176,0.93881382,69345.0,69344.0,0.011821]
[1730556362404,0.91745823,69345.0,69344.0,0.011821]
[1730556362619,1.02408243,69345.0,69344.0,0.011821]
[1730556363510,1.02408243,69345.0,69344.0,0.005821]
[1730556363715,1.16255973,69345.0,69344.0,0.000821]
[1730556363929,1.16255973,69345.0,69344.0,0.006821]
[1730556364141,1.16255973,69345.0,69344.0,0.010821]
[1730556364374,1.16255973,69345.0,69344.0,0.000821]
[1730556364375,1.16250771,69345.0,69344.0,0.000821]
[1730556364597,1.16249868,69345.0,69344.0,0.000821]
[1730556364809,1.16849868,69345.0,69344.0,0.001821]
[1730556365271,1.02502138,69345.0,69344.0,0.001821]
[1730556365503,1.03002138,69345.0,69344.0,0.001821]
[1730556366720,1.02502138,69345.0,69344.0,0.001821]
[1730556366935,1.03002138,69345.0,69344.0,0.001821]
[1730556368039,0.98475736,69345.0,69344.0,0.001821]
[1730556368271,1.16846159,69345.0,69344.0,0.001821]
[1730556368514,0.98475736,69345.0,69344.0,0.001821]
[1730556368737,0.9519755,69345.0,69344.0,0.001821]
[1730556368951,0.94133599,69345.0,69344.0,0.001821]
[1730556369182,0.95197589,69345.0,69344.0,0.001821]
[1730556370477,0.95397589,69345.0,69344.0,0.001821]
[1730556370713,1.09245319,69345.0,69344.0,0.001821]
[1730556370945,1.39870779,69345.0,69344.0,0.001821]
[1730556371213,1.39870779,69345.0,69330.0,0.84289131]
[1730556371214,0.100964,69331.0,69330.0,0.84289131]
[1730556371473,0.110986,69316.0,69311.0,0.21615691]
[1730556371712,1.07923861,69316.0,69311.0,0.21615691]
[1730556371927,1.07688853,69316.0,69311.0,0.21615691]
[1730556372180,0.97590253,69316.0,69311.0,0.21615691]
[1730556372608,1.07688853,69316.0,69311.0,0.21615691]
[1730556373097,1.10876237,69316.0,69311.0,0.21615691]
[1730556373310,1.09813782,69316.0,69311.0,0.21615691]
[1730556373544,1.07688853,69316.0,69311.0,0.21615691]
[1730556374231,0.91308918,69316.0,69311.0,0.21615691]
[1730556376324,0.005,69312.0,69311.0,0.21324978]
[1730556376584,0.01328982,69315.0,69311.0,0.21324978]
[1730556376840,0.80310318,69312.0,69311.0,0.21324978]
[1730556377078,0.78981336,69312.0,69311.0,0.21324978]
[1730556377300,0.80307434,69312.0,69311.0,0.21324978]
[1730556377527,0.99027666,69312.0,69311.0,0.21324978]
[1730556377746,0.99027666,69312.0,69311.0,0.21724978]
[1730556378668,0.80807434,69312.0,69311.0,0.21724978]
[1730556379380,0.80807698,69312.0,69311.0,0.21724978]
[1730556379603,0.90906898,69312.0,69311.0,0.21724978]